[Event "MČR juniorů a juniorek v rapid šachu 2024"]
[Site "Hotel Fit Fun, Harrachov, Czech Republic"]
[Date "2024.09.21"]
[Round "6.9"]
[White "Vilimek Vit"]
[Black "Mrazek Adam"]
[Result "1-0"]
[TimeControl "20+5"]
[WhiteFideId "23718218"]
[BlackFideId "23725010"]
[WhiteElo "2025"]
[BlackElo "1830"]

1. e4 {[%clk 00:20:09]} {[%emt 00:25:21]} c5 {[%clk 00:20:07]} {[%emt
00:00:04]} 2. a3 {[%clk 00:20:13]} {[%emt 00:00:02]} Nc6 {[%clk 00:19:54]}
{[%emt 00:00:17]} 3. b4 {[%clk 00:20:17]} {[%emt 00:00:02]} cxb4 {[%clk
00:18:34]} {[%emt 00:01:25]} 4. axb4 {[%clk 00:19:43]} {[%emt 00:00:39]} Nxb4
{[%clk 00:18:27]} {[%emt 00:00:12]} 5. c3 {[%clk 00:19:47]} Nc6 {[%clk
00:18:27]} {[%emt 00:00:04]} 6. d4 {[%clk 00:19:52]} d5 {[%clk 00:18:20]}
{[%emt 00:00:13]} 7. exd5 {[%clk 00:19:55]} {[%emt 00:00:02]} Qxd5 {[%clk
00:18:19]} {[%emt 00:00:06]} 8. Na3 {[%clk 00:19:55]} {[%emt 00:00:05]} Nf6
{[%clk 00:12:07]} {[%emt 00:06:17]} 9. Nb5 {[%clk 00:19:12]} {[%emt 00:00:49]}
Qd8 {[%clk 00:12:07]} {[%emt 00:00:05]} 10. Bf4 {[%clk 00:18:58]} {[%emt
00:00:18]} Nd5 {[%clk 00:10:56]} {[%emt 00:01:15]} 11. Qf3 {[%clk 00:18:44]}
{[%emt 00:00:20]} Nxf4 {[%clk 00:09:09]} {[%emt 00:01:52]} 12. Qxf4 {[%clk
00:18:46]} {[%emt 00:00:03]} e5 {[%clk 00:09:01]} {[%emt 00:00:13]} 13. dxe5
{[%clk 00:18:24]} {[%emt 00:00:27]} Bc5 {[%clk 00:08:11]} {[%emt 00:00:56]} 14.
Bc4 {[%clk 00:15:45]} {[%emt 00:02:43]} O-O {[%clk 00:07:45]} {[%emt 00:00:31]}
15. Nf3 {[%clk 00:15:45]} {[%emt 00:00:04]} a6 {[%clk 00:05:44]} {[%emt
00:02:07]} 16. Nbd4 {[%clk 00:14:32]} {[%emt 00:01:18]} Nxd4 {[%clk 00:05:36]}
{[%emt 00:00:13]} 17. Nxd4 {[%clk 00:14:13]} {[%emt 00:00:24]} Bxd4 {[%clk
00:04:30]} {[%emt 00:01:12]} 18. Qxd4 {[%clk 00:13:33]} {[%emt 00:00:44]} Qxd4
19. cxd4 {[%clk 00:13:37]} Bf5 {[%clk 00:02:09]} {[%emt 00:02:05]} 20. O-O
{[%clk 00:13:25]} {[%emt 00:00:17]} b5 {[%clk 00:01:59]} {[%emt 00:00:16]} 21.
Be2 {[%clk 00:13:23]} {[%emt 00:00:06]} Rfd8 {[%clk 00:01:29]} {[%emt
00:00:36]} 22. d5 {[%clk 00:12:57]} {[%emt 00:00:30]} b4 {[%clk 00:00:25]}
{[%emt 00:01:09]} 23. Bc4 {[%clk 00:12:39]} {[%emt 00:00:23]} a5 {[%clk
00:00:25]} {[%emt 00:00:05]} 24. Bb3 {[%clk 00:11:19]} {[%emt 00:01:26]} Bd7
{[%clk 00:00:17]} {[%emt 00:00:14]} 25. e6 {[%clk 00:10:22]} {[%emt 00:01:00]}
Be8 {[%clk 00:00:16]} {[%emt 00:00:06]} 26. e7 {[%clk 00:08:58]} {[%emt
00:01:29]} Rd6 {[%clk 00:00:20]} 27. Rfe1 {[%clk 00:08:48]} {[%emt 00:00:16]}
f6 {[%clk 00:00:10]} {[%emt 00:00:15]} 28. Re4 {[%clk 00:07:47]} {[%emt
00:01:05]} Kf7 {[%clk 00:00:09]} {[%emt 00:00:06]} 29. f3 {[%clk 00:07:00]}
{[%emt 00:00:51]} Ra7 {[%clk 00:00:08]} {[%emt 00:00:07]} 30. Rxb4 {[%clk
00:06:45]} {[%emt 00:00:19]} Rxe7 {[%clk 00:00:08]} {[%emt 00:00:05]} 31. Rxa5
{[%clk 00:06:43]} {[%emt 00:00:07]} Kg6 {[%clk 00:00:08]} {[%emt 00:00:05]} 32.
Kf2 {[%clk 00:06:29]} {[%emt 00:00:19]} Bf7 {[%clk 00:00:07]} {[%emt 00:00:06]}
33. Bc2+ {[%clk 00:06:24]} {[%emt 00:00:10]} Kh6 {[%emt 00:00:08]} 34. Rh4+
{[%clk 00:05:51]} {[%emt 00:00:36]} Kg5 {[%clk 00:00:10]} 35. Rxh7 {[%clk
00:05:30]} {[%emt 00:00:26]} Bxd5 {[%clk 00:00:12]} {[%emt 00:00:04]} 36. Be4
{[%clk 00:04:46]} {[%emt 00:00:48]} Red7 {[%clk 00:00:07]} {[%emt 00:00:10]} 37.
Bxd5 {[%clk 00:04:29]} {[%emt 00:00:22]} Rxd5 {[%clk 00:00:06]} {[%emt
00:00:06]} 38. Rxg7+ {[%clk 00:04:28]} {[%emt 00:00:06]} 1-0



[ePGN "0.1;DGT LiveChess/2.2.6"]

[Event "MČR juniorů a juniorek v rapid šachu 2024"]
[Site "Hotel Fit Fun, Harrachov, Czech Republic"]
[Date "2024.09.22"]
[Round "7.1"]
[White "Skypala Ondrej"]
[Black "Pejrimovska Viola Ruby"]
[Result "1-0"]
[TimeControl "20+5"]
[WhiteFideId "366285"]
[BlackFideId "23709529"]
[WhiteElo "2033"]
[BlackElo "1876"]

1. c4 {[%clk 00:19:17]} {[%emt 00:00:45]} Nf6 {[%clk 00:20:08]} {[%emt
00:00:10]} 2. g3 {[%clk 00:19:20]} {[%emt 00:00:02]} g6 {[%clk 00:20:12]}
{[%emt 00:00:01]} 3. Bg2 {[%clk 00:19:24]} {[%emt 00:00:02]} Bg7 {[%clk
00:20:16]} {[%emt 00:00:01]} 4. Nc3 {[%clk 00:19:27]} {[%emt 00:00:01]} c5
{[%clk 00:19:07]} {[%emt 00:01:14]} 5. Nf3 {[%clk 00:19:30]} {[%emt 00:00:03]}
O-O {[%clk 00:19:09]} {[%emt 00:00:04]} 6. d4 {[%clk 00:19:33]} {[%emt
00:00:01]} Nc6 {[%clk 00:17:30]} {[%emt 00:01:43]} 7. dxc5 {[%clk 00:19:21]}
{[%emt 00:00:18]} Qa5 {[%clk 00:16:17]} {[%emt 00:01:17]} 8. O-O {[%clk
00:19:24]} {[%emt 00:00:02]} Qxc5 {[%clk 00:15:27]} {[%emt 00:00:55]} 9. b3
{[%clk 00:19:28]} {[%emt 00:00:02]} h6 {[%clk 00:11:46]} {[%emt 00:03:46]} 10.
Bf4 {[%clk 00:16:28]} {[%emt 00:03:05]} g5 {[%clk 00:11:25]} {[%emt 00:00:26]}
11. Be3 {[%clk 00:16:29]} {[%emt 00:00:04]} Qf5 {[%clk 00:11:19]} {[%emt
00:00:11]} 12. Nd4 {[%clk 00:16:12]} {[%emt 00:00:21]} Nxd4 {[%clk 00:09:24]}
{[%emt 00:02:01]} 13. Bxd4 {[%clk 00:16:16]} {[%emt 00:00:02]} d6 {[%clk
00:08:30]} {[%emt 00:00:58]} 14. h3 {[%clk 00:14:50]} {[%emt 00:01:31]} Qg6
{[%clk 00:08:19]} {[%emt 00:00:17]} 15. c5 {[%clk 00:14:03]} {[%emt 00:00:52]}
e5 {[%clk 00:05:05]} {[%emt 00:03:18]} 16. Be3 {[%clk 00:14:03]} {[%emt
00:00:05]} Qh5 {[%clk 00:04:29]} {[%emt 00:00:41]} 17. Nd5 {[%clk 00:11:42]}
{[%emt 00:02:26]} Nxd5 {[%clk 00:02:16]} {[%emt 00:02:17]} 18. Qxd5 {[%clk
00:11:45]} {[%emt 00:00:03]} Be6 {[%clk 00:01:41]} {[%emt 00:00:40]} 19. Qxb7
{[%clk 00:11:03]} {[%emt 00:00:47]} d5 {[%clk 00:01:33]} {[%emt 00:00:13]} 20.
g4 {[%clk 00:10:46]} {[%emt 00:00:21]} Qh4 {[%clk 00:00:50]} {[%emt 00:00:49]}
21. f3 {[%clk 00:10:14]} {[%emt 00:00:37]} Qg3 {[%clk 00:00:52]} {[%emt
00:00:03]} 22. Bf2 {[%clk 00:10:14]} {[%emt 00:00:05]} Qf4 {[%clk 00:00:56]} 23.
c6 {[%clk 00:09:28]} {[%emt 00:00:51]} e4 {[%clk 00:00:49]} {[%emt 00:00:12]}
24. e3 {[%clk 00:08:59]} {[%emt 00:00:34]} Qd6 {[%clk 00:00:37]} {[%emt
00:00:17]} 25. Rac1 {[%clk 00:08:54]} {[%emt 00:00:10]} h5 {[%clk 00:00:18]}
{[%emt 00:00:23]} 26. c7 {[%clk 00:08:36]} {[%emt 00:00:24]} hxg4 {[%clk
00:00:09]} {[%emt 00:00:14]} 27. fxg4 {[%clk 00:08:40]} {[%emt 00:00:01]} f5
{[%clk 00:00:08]} {[%emt 00:00:06]} 28. Qc6 {[%clk 00:07:43]} {[%emt 00:01:02]}
Qe7 {[%clk 00:00:08]} {[%emt 00:00:05]} 29. gxf5 {[%clk 00:07:43]} {[%emt
00:00:05]} Bxf5 {[%clk 00:00:12]} 30. Qxd5+ {[%clk 00:07:44]} {[%emt 00:00:04]}
Kh8 {[%clk 00:00:16]} {[%emt 00:00:01]} 31. Bg3 {[%clk 00:07:33]} {[%emt
00:00:16]} Rac8 {[%clk 00:00:20]} {[%emt 00:00:01]} 32. Rxf5 {[%clk 00:07:34]}
{[%emt 00:00:03]} Qa3 {[%clk 00:00:09]} {[%emt 00:00:17]} 33. Rxf8+ {[%clk
00:07:34]} {[%emt 00:00:05]} Rxf8 {[%clk 00:00:09]} {[%emt 00:00:04]} 34. c8=Q
{[%clk 00:07:36]} {[%emt 00:00:04]} 1-0



[ePGN "0.1;DGT LiveChess/2.2.6"]

[Event "MČR juniorů a juniorek v rapid šachu 2024"]
[Site "Hotel Fit Fun, Harrachov, Czech Republic"]
[Date "2024.09.22"]
[Round "7.10"]
[White "Andrle Filip"]
[Black "Rousek Jan"]
[Result "1/2-1/2"]
[TimeControl "20+5"]
[WhiteFideId "23718749"]
[BlackFideId "386669"]
[WhiteElo "1789"]
[BlackElo "1958"]

1. e4 {[%clk 00:20:06]} {[%emt 00:00:02]} c5 {[%clk 00:20:07]} {[%emt
00:00:03]} 2. Nc3 {[%clk 00:20:09]} {[%emt 00:00:02]} Nc6 {[%clk 00:19:42]}
{[%emt 00:00:30]} 3. g3 {[%clk 00:20:11]} {[%emt 00:00:03]} e6 {[%clk
00:19:40]} {[%emt 00:00:07]} 4. Bg2 {[%clk 00:20:12]} {[%emt 00:00:04]} Nf6
{[%clk 00:19:41]} {[%emt 00:00:04]} 5. Nge2 {[%clk 00:19:14]} {[%emt 00:01:04]}
d5 {[%clk 00:19:30]} {[%emt 00:00:15]} 6. exd5 {[%clk 00:19:08]} {[%emt
00:00:12]} exd5 {[%clk 00:19:33]} {[%emt 00:00:02]} 7. d4 {[%clk 00:19:09]}
{[%emt 00:00:04]} cxd4 {[%clk 00:19:30]} {[%emt 00:00:08]} 8. Nxd4 {[%clk
00:18:57]} {[%emt 00:00:17]} Bg4 {[%clk 00:19:08]} {[%emt 00:00:26]} 9. f3
{[%clk 00:18:24]} {[%emt 00:00:38]} Bd7 {[%clk 00:17:56]} {[%emt 00:01:18]} 10.
O-O {[%clk 00:09:46]} {[%emt 00:08:43]} Be7 {[%clk 00:17:20]} {[%emt 00:00:41]}
11. Nxc6 {[%clk 00:08:21]} {[%emt 00:01:30]} bxc6 {[%clk 00:17:14]} {[%emt
00:00:10]} 12. Be3 {[%clk 00:08:16]} {[%emt 00:00:11]} O-O {[%clk 00:16:46]}
{[%emt 00:00:32]} 13. Qd2 {[%clk 00:06:33]} {[%emt 00:01:49]} Re8 {[%clk
00:08:57]} {[%emt 00:07:54]} 14. Bf2 {[%clk 00:06:19]} {[%emt 00:00:19]} Rb8
{[%clk 00:08:34]} {[%emt 00:00:28]} 15. Na4 {[%clk 00:05:22]} {[%emt 00:01:02]}
Rb5 {[%clk 00:05:58]} {[%emt 00:02:41]} 16. b3 {[%clk 00:04:10]} {[%emt
00:01:16]} Qa5 {[%clk 00:04:58]} {[%emt 00:01:04]} 17. Qxa5 {[%clk 00:03:30]}
{[%emt 00:00:47]} Rxa5 {[%clk 00:05:02]} {[%emt 00:00:01]} 18. Rfe1 {[%clk
00:02:43]} {[%emt 00:00:51]} c5 {[%clk 00:04:34]} {[%emt 00:00:33]} 19. Nb2
{[%clk 00:02:02]} {[%emt 00:00:46]} Bf5 {[%clk 00:03:42]} {[%emt 00:00:58]} 20.
Re2 {[%clk 00:00:41]} {[%emt 00:01:26]} Kf8 {[%clk 00:03:27]} {[%emt 00:00:21]}
21. a4 {[%clk 00:00:39]} {[%emt 00:00:07]} Ra6 {[%clk 00:03:17]} {[%emt
00:00:15]} 22. Rae1 {[%clk 00:00:35]} {[%emt 00:00:08]} Re6 {[%clk 00:02:51]}
{[%emt 00:00:32]} 23. Rxe6 {[%clk 00:00:29]} {[%emt 00:00:11]} fxe6 {[%clk
00:02:51]} {[%emt 00:00:04]} 24. Nd3 {[%clk 00:00:25]} {[%emt 00:00:10]} Bxd3
{[%clk 00:02:51]} {[%emt 00:00:05]} 25. cxd3 {[%clk 00:00:28]} {[%emt
00:00:01]} Kf7 {[%clk 00:02:45]} {[%emt 00:00:11]} 26. Bh3 {[%clk 00:00:26]}
{[%emt 00:00:07]} Bd6 {[%clk 00:02:30]} {[%emt 00:00:20]} 27. f4 {[%clk
00:00:30]} {[%emt 00:00:02]} h5 {[%clk 00:01:55]} {[%emt 00:00:41]} 28. Rc1
{[%clk 00:00:29]} {[%emt 00:00:05]} d4 {[%clk 00:00:55]} {[%emt 00:01:05]} 29.
Bg2 {[%clk 00:00:10]} {[%emt 00:00:24]} Ng4 {[%clk 00:00:55]} {[%emt 00:00:05]}
30. h3 {[%clk 00:00:10]} {[%emt 00:00:05]} Nxf2 {[%clk 00:00:58]} {[%emt
00:00:01]} 31. Kxf2 {[%clk 00:00:13]} {[%emt 00:00:02]} Rb8 {[%clk 00:01:01]}
{[%emt 00:00:02]} 32. Rb1 {[%clk 00:00:13]} {[%emt 00:00:06]} Kf6 {[%clk
00:00:50]} {[%emt 00:00:16]} 33. Bc6 {[%clk 00:00:14]} {[%emt 00:00:04]} h4
{[%clk 00:00:41]} {[%emt 00:00:14]} 34. Bb5 {[%clk 00:00:08]} {[%emt 00:00:11]}
hxg3+ {[%clk 00:00:39]} {[%emt 00:00:07]} 35. Kxg3 {[%clk 00:00:10]} {[%emt
00:00:04]} Kf5 {[%clk 00:00:43]} {[%emt 00:00:02]} 36. Kf3 {[%clk 00:00:11]}
{[%emt 00:00:03]} Bxf4 {[%clk 00:00:40]} {[%emt 00:00:08]} 37. Bc4 {[%clk
00:00:14]} {[%emt 00:00:03]} e5 {[%clk 00:00:34]} {[%emt 00:00:10]} 38. Rg1
{[%clk 00:00:11]} {[%emt 00:00:06]} g5 {[%clk 00:00:37]} {[%emt 00:00:04]} 39.
Bd5 {[%clk 00:00:10]} {[%emt 00:00:06]} Rh8 {[%clk 00:00:35]} {[%emt 00:00:04]}
40. Rh1 {[%clk 00:00:10]} {[%emt 00:00:08]} Rh4 {[%clk 00:00:30]} {[%emt
00:00:10]} 41. Be4+ {[%clk 00:00:12]} {[%emt 00:00:03]} Kf6 {[%clk 00:00:33]}
{[%emt 00:00:03]} 42. Kg2 {[%clk 00:00:09]} {[%emt 00:00:07]} g4 {[%clk
00:00:23]} {[%emt 00:00:15]} 43. hxg4 {[%clk 00:00:13]} {[%emt 00:00:02]} Rxg4+
{[%clk 00:00:23]} {[%emt 00:00:05]} 44. Kf2 {[%clk 00:00:14]} {[%emt 00:00:03]}
Be3+ {[%clk 00:00:21]} {[%emt 00:00:08]} 45. Ke2 {[%clk 00:00:12]} {[%emt
00:00:07]} Rg1 {[%clk 00:00:15]} {[%emt 00:00:10]} 46. Rxg1 {[%clk 00:00:14]}
{[%emt 00:00:03]} Bxg1 {[%clk 00:00:19]} {[%emt 00:00:02]} 47. Kf3 {[%clk
00:00:14]} {[%emt 00:00:05]} Kg5 {[%clk 00:00:22]} {[%emt 00:00:01]} 48. Bd5
{[%clk 00:00:15]} {[%emt 00:00:05]} a5 {[%clk 00:00:26]} 49. Bc6 {[%clk
00:00:14]} {[%emt 00:00:05]} Be3 {[%clk 00:00:25]} {[%emt 00:00:06]} 50. Be4
{[%clk 00:00:16]} {[%emt 00:00:03]} Kh4 {[%clk 00:00:28]} {[%emt 00:00:02]} 51.
Bf5 {[%clk 00:00:17]} {[%emt 00:00:05]} Kg5 {[%clk 00:00:30]} {[%emt 00:00:03]}
52. Be4 {[%clk 00:00:19]} {[%emt 00:00:03]} Kh5 {[%clk 00:00:15]} {[%emt
00:00:18]} 53. Bd5 {[%clk 00:00:20]} {[%emt 00:00:06]} Kh4 {[%clk 00:00:17]}
{[%emt 00:00:04]} 54. Be6 {[%clk 00:00:23]} {[%emt 00:00:02]} 1/2-1/2



[ePGN "0.1;DGT LiveChess/2.2.6"]

[Event "MČR juniorů a juniorek v rapid šachu 2024"]
[Site "Hotel Fit Fun, Harrachov, Czech Republic"]
[Date "2024.09.22"]
[Round "7.11"]
[White "Juhanak Daniel"]
[Black "Urbansky Stepan"]
[Result "1/2-1/2"]
[TimeControl "20+5"]
[WhiteFideId "23718765"]
[BlackFideId "23761741"]
[WhiteElo "1982"]
[BlackElo "1837"]

1. Nf3 {[%clk 00:20:07]} {[%emt 00:00:02]} Nf6 {[%clk 00:20:08]} {[%emt
00:00:02]} 2. c4 {[%clk 00:20:12]} {[%emt 00:00:02]} c5 {[%clk 00:20:05]}
{[%emt 00:00:07]} 3. Nc3 {[%clk 00:20:15]} {[%emt 00:00:02]} g6 {[%clk
00:20:08]} {[%emt 00:00:03]} 4. g3 {[%clk 00:19:16]} {[%emt 00:01:04]} Bg7
{[%clk 00:20:06]} {[%emt 00:00:06]} 5. Bg2 {[%clk 00:19:21]} Nc6 {[%clk
00:20:03]} {[%emt 00:00:09]} 6. O-O {[%clk 00:19:21]} {[%emt 00:00:05]} O-O
{[%clk 00:20:04]} {[%emt 00:00:03]} 7. d4 {[%clk 00:18:49]} {[%emt 00:00:37]}
cxd4 {[%clk 00:18:31]} {[%emt 00:01:38]} 8. Nxd4 {[%clk 00:18:53]} {[%emt
00:00:02]} Nxd4 {[%clk 00:18:33]} {[%emt 00:00:02]} 9. Qxd4 {[%clk 00:18:57]}
{[%emt 00:00:01]} d6 {[%clk 00:18:17]} {[%emt 00:00:22]} 10. b3 {[%clk
00:16:16]} {[%emt 00:02:46]} Ng4 {[%clk 00:15:27]} {[%emt 00:02:54]} 11. Qd2
{[%clk 00:15:28]} {[%emt 00:00:53]} Rb8 {[%clk 00:15:03]} {[%emt 00:00:29]} 12.
Bb2 {[%clk 00:15:23]} {[%emt 00:00:10]} a6 {[%clk 00:14:00]} {[%emt 00:01:09]}
13. a4 {[%clk 00:13:36]} {[%emt 00:01:52]} Qa5 {[%clk 00:12:42]} {[%emt
00:01:23]} 14. Rad1 {[%clk 00:12:07]} {[%emt 00:01:34]} Qh5 {[%clk 00:09:18]}
{[%emt 00:03:28]} 15. h4 {[%clk 00:11:13]} {[%emt 00:01:00]} Nf6 {[%clk
00:08:43]} {[%emt 00:00:39]} 16. Nd5 {[%clk 00:10:02]} {[%emt 00:01:16]} Nxd5
{[%clk 00:07:32]} {[%emt 00:01:16]} 17. Bxg7 {[%clk 00:10:05]} {[%emt
00:00:03]} Kxg7 {[%clk 00:07:35]} 18. cxd5 {[%clk 00:09:02]} {[%emt 00:01:09]}
b5 {[%clk 00:06:07]} {[%emt 00:01:33]} 19. a5 {[%clk 00:08:31]} {[%emt
00:00:36]} b4 {[%clk 00:05:47]} {[%emt 00:00:25]} 20. Qd4+ {[%clk 00:07:02]}
{[%emt 00:01:34]} Qe5 {[%clk 00:05:32]} {[%emt 00:00:19]} 21. f4 {[%clk
00:04:53]} {[%emt 00:02:14]} Qxd4+ {[%clk 00:05:05]} {[%emt 00:00:32]} 22. Rxd4
{[%clk 00:04:58]} Bg4 {[%clk 00:04:15]} {[%emt 00:00:55]} 23. Re4 {[%clk
00:03:52]} {[%emt 00:01:11]} Rfe8 {[%clk 00:03:52]} {[%emt 00:00:28]} 24. Rc1
{[%clk 00:03:41]} {[%emt 00:00:16]} Rb5 {[%clk 00:02:58]} {[%emt 00:00:59]} 25.
Rc6 {[%clk 00:02:00]} {[%emt 00:01:46]} Rxd5 {[%clk 00:02:25]} {[%emt
00:00:38]} 26. Rxa6 {[%clk 00:02:00]} {[%emt 00:00:06]} Rd2 {[%clk 00:01:29]}
{[%emt 00:01:00]} 27. Rb6 {[%clk 00:01:08]} {[%emt 00:00:57]} Bxe2 {[%clk
00:01:13]} {[%emt 00:00:21]} 28. Rbxb4 {[%clk 00:01:02]} {[%emt 00:00:12]} Rc8
{[%clk 00:01:17]} 29. Rbd4 {[%emt 00:00:44]} Rb2 {[%clk 00:00:59]} {[%emt
00:00:22]} 30. Rxe2 {[%clk 00:00:12]} {[%emt 00:00:17]} Rxe2 {[%clk 00:01:00]}
{[%emt 00:00:03]} 31. Rd1 {[%clk 00:00:15]} {[%emt 00:00:02]} Rb8 {[%clk
00:00:43]} {[%emt 00:00:23]} 32. a6 {[%clk 00:00:15]} {[%emt 00:00:05]} Rxb3
{[%clk 00:00:34]} {[%emt 00:00:13]} 33. a7 {[%clk 00:00:18]} {[%emt 00:00:03]}
Rxg2+ {[%clk 00:00:36]} {[%emt 00:00:03]} 34. Kxg2 {[%clk 00:00:14]} Ra3 {[%clk
00:00:39]} {[%emt 00:00:10]} 35. Rd5 {[%clk 00:00:15]} Rxa7 {[%clk 00:00:42]}
{[%emt 00:00:07]} 36. Kf3 {[%clk 00:00:19]} Kf6 {[%clk 00:00:43]} {[%emt
00:00:04]} 37. Rd3 {[%clk 00:00:23]} h5 {[%clk 00:00:42]} {[%emt 00:00:05]} 38.
Rb3 {[%clk 00:00:28]} {[%emt 00:00:01]} Ra5 {[%clk 00:00:44]} {[%emt 00:00:03]}
39. Ke4 {[%clk 00:00:30]} {[%emt 00:00:03]} Ra4+ {[%clk 00:00:46]} {[%emt
00:00:03]} 40. Kf3 {[%clk 00:00:34]} {[%emt 00:00:01]} e5 {[%clk 00:00:21]}
{[%emt 00:00:30]} 41. fxe5+ {[%clk 00:00:22]} {[%emt 00:00:16]} dxe5 {[%clk
00:00:24]} {[%emt 00:00:02]} 42. Rc3 {[%clk 00:00:23]} {[%emt 00:00:05]} Kf5
{[%clk 00:00:25]} {[%emt 00:00:04]} 43. Rb3 {[%clk 00:00:27]} f6 {[%clk
00:00:22]} {[%emt 00:00:08]} 44. Rc3 {[%clk 00:00:20]} {[%emt 00:00:12]} Rd4
{[%clk 00:00:15]} {[%emt 00:00:12]} 45. Rc6 {[%clk 00:00:10]} {[%emt 00:00:16]}
e4+ {[%clk 00:00:15]} {[%emt 00:00:05]} 46. Kg2 {[%clk 00:00:13]} {[%emt
00:00:02]} e3 {[%clk 00:00:13]} {[%emt 00:00:07]} 47. Kf3 {[%clk 00:00:15]}
{[%emt 00:00:03]} Rd3 {[%clk 00:00:15]} {[%emt 00:00:03]} 48. Rc5+ {[%clk
00:00:15]} {[%emt 00:00:05]} Ke6 {[%clk 00:00:17]} {[%emt 00:00:02]} 49. Ke2
{[%clk 00:00:14]} {[%emt 00:00:07]} Ra3 {[%clk 00:00:21]} {[%emt 00:00:01]} 50.
Rb5 {[%clk 00:00:17]} {[%emt 00:00:02]} Kf7 {[%clk 00:00:14]} {[%emt 00:00:12]}
51. Rb6 {[%clk 00:00:17]} {[%emt 00:00:05]} Kg7 {[%clk 00:00:16]} {[%emt
00:00:02]} 52. Rc6 {[%clk 00:00:18]} {[%emt 00:00:04]} g5 {[%clk 00:00:15]}
{[%emt 00:00:07]} 53. hxg5 {[%clk 00:00:11]} {[%emt 00:00:12]} fxg5 {[%clk
00:00:19]} {[%emt 00:00:01]} 54. Rb6 {[%clk 00:00:14]} {[%emt 00:00:02]} Kh7
{[%clk 00:00:08]} {[%emt 00:00:16]} 55. Rc6 {[%clk 00:00:13]} {[%emt 00:00:05]}
Kg7 {[%clk 00:00:11]} {[%emt 00:00:03]} 56. Rb6 {[%clk 00:00:15]} {[%emt
00:00:03]} Kf7 {[%clk 00:00:12]} {[%emt 00:00:03]} 57. Rh6 {[%clk 00:00:14]}
{[%emt 00:00:06]} h4 {[%clk 00:00:15]} {[%emt 00:00:03]} 1/2-1/2



[ePGN "0.1;DGT LiveChess/2.2.6"]